fUSD/lending_fUSD_20240521
["ID","MTS","AMOUNT","RATE_DAILY","PERIOD"]
[327689149,1716318653446,-500.0,0.00030684,6]
[327689150,1716318653455,-500.0,0.00030684,6]
[327689151,1716318653464,-596.61,0.00030684,6]
[327689152,1716318653473,-500.0,0.00030684,6]
[327689153,1716318653482,-500.0,0.00030684,6]
[327689154,1716318653492,-500.0,0.00030684,6]
[327689155,1716318653501,-603.95,0.00030684,6]
[327689156,1716318653510,-9589.51,0.00030684,6]
[327689157,1716318653519,-500.0,0.00030684,6]
[327689158,1716318653528,-1268.11,0.00030684,6]
[327689159,1716318653537,-1315.38,0.00030684,6]
[327689160,1716318653550,-938.89,0.00030684,6]
[327689161,1716318653562,-2031.24,0.00030684,6]
[327689162,1716318653571,-765.12,0.00030684,6]
[327689163,1716318653582,-1695.3,0.00030684,6]
[327689164,1716318653593,-500.0,0.00030684,6]
[327689165,1716318653602,-500.0,0.00030684,6]
[327689166,1716318653611,-500.0,0.00030684,6]
[327689167,1716318653621,-3683.03,0.00030684,6]
[327689168,1716318653631,-2200.51,0.00030684,6]
[327689169,1716318653641,-500.0,0.00030684,6]
[327689170,1716318653650,-500.0,0.00030684,6]
[327689171,1716318653660,-1925.63,0.00030684,6]
[327689172,1716318653670,-1373.33,0.00030684,6]
[327689173,1716318653679,-1147.94,0.00030684,6]
[327689174,1716318653688,-14832.01,0.00030684,6]
[327689175,1716318653698,-551.2,0.00030684,6]
[327689176,1716318653707,-659.56,0.00030684,6]
[327689177,1716318653717,-1089.1,0.00030684,6]
[327689178,1716318653726,-500.0,0.00030684,6]
[327689179,1716318654014,-749.38,0.00030684,6]
[327689180,1716318654024,-500.0,0.00030684,6]
[327689181,1716318654034,-913.68,0.00030684,6]
[327689182,1716318654044,-2010.32,0.00030684,6]
[327689183,1716318654053,-743.74,0.00030684,6]
[327689184,1716318654063,-500.0,0.00030684,6]
[327689185,1716318654073,-969.01,0.00030684,6]
[327689186,1716318654083,-500.0,0.00030684,6]
[327689187,1716318654092,-1155.65,0.00030684,6]
[327689188,1716318654102,-500.0,0.00030684,6]
[327689189,1716318654111,-500.0,0.00030684,6]
[327689190,1716318654120,-519.76,0.00030684,6]
[327689191,1716318654130,-1452.64,0.00030684,6]
[327689192,1716318654139,-837.35,0.00030684,6]
[327689193,1716318654148,-500.0,0.00030684,6]
[327689194,1716318654158,-500.0,0.00030684,6]
[327689195,1716318654168,-517.58,0.00030684,6]
[327689196,1716318654178,-1085.87,0.00030684,6]
[327689197,1716318654188,-26711.24,0.00030684,6]
[327689198,1716318654197,-1448.82,0.00030684,6]
[327689199,1716318654207,-359.8275001,0.00030684,6]
[327689200,1716318654216,-1598.0,0.00030684,6]
[327689201,1716318654225,-500.0,0.00030684,6]
[327689202,1716318654235,-500.0,0.00030684,6]
[327689203,1716318654244,-500.0,0.00030684,6]
[327689204,1716318654254,-513.33,0.00030684,6]
[327689205,1716318654264,-500.0,0.00030684,6]
[327689206,1716318654273,-500.0,0.00030684,6]
[327689207,1716318654283,-866.84,0.00030684,6]
[327689208,1716318654293,-500.0,0.00030684,6]
[327689209,1716318654302,-1047.08,0.00030684,6]
[327689210,1716318654312,-692.11,0.00030684,6]
[327689211,1716318654321,-6217.08,0.00030684,6]
[327689212,1716318654332,-500.0,0.00030684,6]
[327689213,1716318654341,-3172.16,0.00030684,6]
[327689214,1716318654351,-1038.33,0.00030684,6]
[327689215,1716318654360,-500.0,0.00030684,6]
[327689216,1716318654370,-500.0,0.00030684,6]
[327689217,1716318654379,-798.22,0.00030684,6]
[327689218,1716318654389,-500.0,0.00030684,6]
[327689219,1716318654398,-1518.54,0.00030684,6]
[327689220,1716318654409,-500.0,0.00030684,6]
[327689221,1716318654419,-806.32,0.00030684,6]
[327689222,1716318654428,-500.0,0.00030684,6]
[327689223,1716318654438,-737.51,0.00030684,6]
[327689224,1716318654447,-500.0,0.00030684,6]
[327689225,1716318654457,-4166.75,0.00030684,6]
[327689226,1716318654467,-596.98591066,0.00030684,6]
[327689227,1716318654477,-151.0,0.00030684,7]
[327689228,1716318654486,-500.0,0.00030684,6]
[327689229,1716318654496,-151.0,0.00030684,7]
[327689230,1716318654507,-7972.34,0.00030684,6]
[327689231,1716318654516,-500.0,0.00030684,6]
[327689232,1716318654526,-500.0,0.00030684,6]
[327689233,1716318654536,-797.2,0.00030684,6]
[327689234,1716318654551,-500.0,0.00030684,6]
[327689235,1716318654568,-500.0,0.00030684,6]
[327689236,1716318654578,-955.97,0.00030684,6]
[327689237,1716318654588,-1004.2,0.00030684,6]
[327689238,1716318654600,-500.0,0.00030684,6]
[327689239,1716318654609,-1474.55,0.00030684,6]
[327689240,1716318654619,-1100.29,0.00030684,6]
[327689241,1716318654629,-2256.48,0.00030684,6]
[327689242,1716318654639,-1169.9,0.00030684,6]
[327689243,1716318654649,-750.31,0.00030684,6]
[327689244,1716318654659,-2033.34,0.00030684,6]
[327689245,1716318654668,-5138.99,0.00030684,6]
[327689246,1716318654678,-548.96,0.00030684,6]
[327689247,1716318654687,-500.0,0.00030684,6]
[327689248,1716318654697,-2214.41,0.00030684,6]
[327689249,1716318654706,-1323.39,0.00030684,6]
[327689250,1716318654716,-500.0,0.00030684,6]
[327689251,1716318654726,-500.0,0.00030684,6]
[327689252,1716318654736,-970.46,0.00030684,6]
[327689253,1716318654745,-575.97,0.00030684,6]
[327689254,1716318654755,-1150.32,0.00030684,6]
[327689255,1716318654764,-2191.76,0.00030684,6]
[327689256,1716318654774,-1240.62,0.00030684,6]
[327689257,1716318654783,-1025.7,0.00030684,6]
[327689258,1716318654792,-2733.41,0.00030684,6]
[327689259,1716318654802,-2113.06,0.00030684,6]
[327689260,1716318654812,-683.22,0.00030684,6]
[327689261,1716318654821,-661.76,0.00030684,6]
[327689262,1716318654832,-529.29,0.00030684,6]
[327689263,1716318654841,-2331.76,0.00030684,6]
[327689264,1716318654851,-849.17,0.00030684,6]
[327689265,1716318654860,-500.0,0.00030684,6]
[327689266,1716318654870,-508.14,0.00030684,6]
[327689267,1716318654880,-2044.71,0.00030684,6]
[327689268,1716318654890,-510.34,0.00030684,6]
[327689269,1716318654900,-500.0,0.00030684,6]
[327689270,1716318654909,-2179.79,0.00030684,6]
[327689271,1716318654919,-1314.73,0.00030684,6]
[327689272,1716318654928,-549.74,0.00030684,6]
[327689273,1716318654938,-1261.84,0.00030684,6]
[327689274,1716318654947,-500.0,0.00030684,6]
[327689275,1716318654957,-2415.49,0.00030684,6]
[327689276,1716318654967,-500.0,0.00030684,6]
[327689277,1716318654976,-14426.94,0.00030684,6]
[327689278,1716318654985,-3935.46,0.00030684,6]
[327689279,1716318654994,-500.0,0.00030684,6]
[327689280,1716318655004,-549.04,0.00030684,6]
[327689281,1716318655013,-826.91,0.00030684,6]
[327689282,1716318655022,-561.94,0.00030684,6]
[327689283,1716318655031,-2280.47,0.00030684,6]
[327689284,1716318655041,-1363.02,0.00030684,6]
[327689285,1716318655051,-1495.02,0.00030684,6]
[327689286,1716318655061,-692.16,0.00030684,6]
[327689287,1716318655070,-1533.59,0.00030684,6]
[327689288,1716318655080,-1898.13,0.00030684,6]
[327689289,1716318655089,-500.0,0.00030684,6]
[327689290,1716318655099,-500.0,0.00030684,6]
[327689291,1716318655108,-523.66,0.00030684,6]
[327689292,1716318655118,-608.06,0.00030684,6]
[327689293,1716318655128,-500.0,0.00030684,6]
[327689294,1716318655137,-1125.84,0.00030684,6]
[327689295,1716318655147,-500.0,0.00030684,6]
[327689296,1716318655156,-1143.25,0.00030684,6]
[327689297,1716318655165,-1381.56,0.00030684,6]
[327689298,1716318655175,-1096.01,0.00030684,6]
[327689299,1716318655184,-6161.26,0.00030684,6]
[327689300,1716318655193,-569.34,0.00030684,6]
[327689301,1716318655202,-4923.88,0.00030684,6]
[327689302,1716318655211,-2004.23,0.00030684,6]
[327689303,1716318655220,-2345.63,0.00030684,6]
[327689304,1716318655229,-500.0,0.00030684,6]
[327689305,1716318655239,-500.0,0.00030684,6]
[327689306,1716318655248,-500.0,0.00030684,6]
[327689307,1716318655258,-500.0,0.00030684,6]
[327689308,1716318655267,-1144.43,0.00030684,6]
[327689309,1716318655276,-1458.26,0.00030684,6]
[327689310,1716318655285,-500.0,0.00030684,6]
[327689311,1716318655295,-500.0,0.00030684,2]
[327689312,1716318655304,-14120.96,0.00030684,6]
[327689313,1716318655313,-907.25,0.00030684,6]
[327689314,1716318655322,-4259.67,0.00030684,6]
[327689315,1716318655332,-2391.36,0.00030684,6]
[327689316,1716318655341,-587.51,0.00030684,6]
[327689317,1716318655351,-500.0,0.00030684,6]
[327689318,1716318655360,-500.0,0.00030684,6]
[327689319,1716318655370,-907.26,0.00030684,6]
[327689320,1716318655379,-2703.37,0.00030684,6]
[327689321,1716318655389,-2188.47,0.00030684,6]
[327689322,1716318655399,-3967.77,0.00030684,6]
[327689323,1716318655408,-514.44,0.00030684,6]
[327689324,1716318655417,-500.0,0.00030684,6]
[327689325,1716318655426,-517.18,0.00030684,6]
[327689326,1716318655436,-500.0,0.00030684,6]
[327689327,1716318655445,-500.0,0.00030684,6]
[327689328,1716318655455,-869.81,0.00030685,2]
[327689329,1716318655464,-415.6,0.00030685,2]
[327689330,1716318655473,-869.81,0.00030685,2]
[327689331,1716318655482,-415.6,0.00030685,2]
[327689332,1716318655492,-415.6,0.00030685,2]
[327689333,1716318655501,-869.81,0.00030685,2]
[327689334,1716318655511,-869.81,0.00030685,2]
[327689335,1716318655520,-415.6,0.00030685,2]
[327689336,1716318655530,-869.81,0.00030685,2]
[327689337,1716318655539,-415.6,0.00030685,2]
[327689338,1716318655554,-415.6,0.00030685,2]
[327689339,1716318655563,-869.81,0.00030685,2]
[327689340,1716318655573,-415.6,0.00030685,2]
[327689341,1716318655583,-869.81,0.00030685,2]
[327689342,1716318655594,-415.6,0.00030685,2]
[327689343,1716318655604,-869.81,0.00030685,2]
[327689344,1716318655613,-1592.55,0.00030685,2]
[327689345,1716318655626,-415.23,0.00030685,2]
[327689346,1716318655635,-1000.0,0.0003071,15]
[327689347,1716318655645,-500.0,0.0003071,2]
[327689348,1716318655654,-415.6,0.00030712,2]
[327689349,1716318655663,-869.81,0.00030712,2]
[327689350,1716318655673,-869.81,0.00030712,2]
[327689351,1716318655682,-415.6,0.00030712,2]
[327689352,1716318655692,-315.95,0.00030712,2]
[327689353,1716318655701,-414.5,0.00030712,2]
[327689354,1716318655711,-150.0,0.00030765,2]
[327689355,1716318655720,-150.0,0.00030785,2]
[327689356,1716318655730,-150.0,0.00030799,2]
[327689357,1716318655739,-11934.45263674,0.00030827,2]
[327689358,1716318655748,-150.0,0.00030836,2]
[327689359,1716318655758,-150.0,0.00030838,2]
[327689360,1716318655768,-150.0,0.00030839,2]
[327689361,1716318655777,-200.0,0.00030846,2]
[327689362,1716318655787,-1000.0,0.00030846,15]
[327689363,1716318655796,-500.0,0.00030846,2]
[327689364,1716318655805,-200.0,0.00030846,2]
[327689365,1716318655814,-150.0,0.00030848,2]
[327689366,1716318655824,-150.0,0.0003085,2]
[327689367,1716318655834,-150.0,0.00030857,2]
[327689368,1716318655843,-150.0,0.00030888,2]
[327689369,1716318655852,-150.0,0.00030892,2]
[327689370,1716318655862,-150.0,0.00030896,2]
[327689371,1716318655871,-150.0,0.00030899,2]
[327689372,1716318655880,-7100.0,0.000309,11]
[327689373,1716318655890,-150.0,0.00030903,2]
[327689374,1716318655899,-150.0,0.00030912,2]
[327689375,1716318655908,-150.0,0.00030913,2]
[327689376,1716318655918,-150.0,0.00030913,2]
[327689377,1716318655927,-442.24823816,0.00030919,3]
[327689378,1716318655937,-150.0,0.00030929,2]
[327689379,1716318655946,-150.0,0.00030934,2]
[327689380,1716318655955,-150.0,0.0003094,2]
[327689381,1716318655965,-201.51603353,0.00030942,2]
[327689382,1716318655974,-150.0,0.00030944,2]
[327689383,1716318655983,-177.06616414,0.00030956,4]
[327689384,1716318655993,-214.64505087,0.00030957,4]
[327689385,1716318656003,-19661.1680839,0.00030957,2]
[327689386,1716318656013,-2079.16,0.00030958,6]
[327689387,1716318656022,-500.0,0.00030958,6]
[327689388,1716318656032,-500.0,0.00030958,6]
[327689389,1716318656042,-500.0,0.00030958,6]
[327689390,1716318656051,-750.57,0.00030958,6]
[327689391,1716318656061,-500.0,0.00030958,6]
[327689392,1716318656071,-500.0,0.00030958,6]
[327689393,1716318656081,-500.0,0.00030958,6]
[327689394,1716318656090,-500.0,0.00030958,6]
[327689395,1716318656099,-500.0,0.00030958,6]
[327689396,1716318656108,-509.7461937,0.00030958,6]
[327689397,1716318656117,-500.0,0.00030958,6]
[327689398,1716318656127,-500.0,0.00030958,6]
[327689399,1716318656136,-500.0,0.00030958,2]
[327689400,1716318656145,-500.0,0.00030958,6]
[327689401,1716318656155,-500.0,0.00030958,6]
[327689402,1716318656164,-340.28377606,0.00030958,6]
[327689403,1716318656174,-500.0,0.00030958,6]
[327689404,1716318656184,-500.0,0.00030958,6]
[327689405,1716318656193,-500.0,0.00030958,6]
[327689406,1716318656202,-500.0,0.00030958,6]
[327689407,1716318656212,-500.0,0.00030958,6]
[327689408,1716318656221,-500.0,0.00030958,6]
[327689409,1716318656231,-500.0,0.00030958,6]
[327689410,1716318656240,-500.0,0.00030958,6]
[327689411,1716318656249,-500.0,0.00030958,6]
[327689412,1716318656258,-469.32566169,0.00030958,6]
[327689413,1716318656267,-593.42,0.00030958,6]
[327689414,1716318656277,-500.0,0.00030958,6]
[327689415,1716318656286,-500.0,0.00030958,6]
[327689416,1716318656295,-537.19,0.00030958,6]
[327689417,1716318656305,-596.3,0.00030958,6]
[327689418,1716318656314,-500.0,0.00030958,6]
[327689419,1716318656325,-500.0,0.00030958,6]
[327689420,1716318656386,-702.26,0.00030958,6]
[327689421,1716318656395,-500.0,0.00030958,6]
[327689422,1716318656404,-500.0,0.00030958,6]
[327689423,1716318656413,-500.0,0.00030958,6]
[327689424,1716318656423,-500.0,0.00030958,6]
[327689425,1716318656433,-500.0,0.00030958,6]
[327689426,1716318656442,-500.0,0.00030958,6]
[327689427,1716318656452,-1133.14,0.00030958,6]
[327689428,1716318656461,-500.0,0.00030958,6]
[327689429,1716318656470,-500.0,0.00030958,6]
[327689430,1716318656479,-500.0,0.00030958,6]
[327689431,1716318656488,-500.0,0.00030958,6]
[327689432,1716318656498,-500.0,0.00030958,6]
[327689433,1716318656507,-500.0,0.00030958,6]
[327689434,1716318656516,-500.0,0.00030958,6]
[327689435,1716318656525,-642.36,0.00030958,6]
[327689436,1716318656535,-500.0,0.00030958,6]
[327689437,1716318656545,-779.2,0.00030958,6]
[327689438,1716318656557,-500.0,0.00030958,6]
[327689439,1716318656567,-500.0,0.00030958,6]
[327689440,1716318656576,-605.02,0.00030958,6]
[327689441,1716318656587,-653.1,0.00030958,6]
[327689442,1716318656596,-500.0,0.00030958,6]
[327689443,1716318656605,-933.56,0.00030958,6]
[327689444,1716318656614,-500.0,0.00030958,6]
[327689445,1716318656623,-500.0,0.00030958,6]
[327689446,1716318656635,-500.0,0.00030958,6]
[327689447,1716318656644,-500.0,0.00030958,6]
[327689448,1716318656653,-500.0,0.00030958,6]
[327689449,1716318656663,-500.0,0.00030958,6]
[327689450,1716318656671,-500.0,0.00030958,6]
[327689451,1716318656680,-556.43,0.00030958,6]
[327689452,1716318656690,-500.0,0.00030958,6]
[327689453,1716318656699,-710.05,0.00030958,6]
[327689454,1716318656709,-500.0,0.00030958,6]
[327689455,1716318656718,-594.01,0.00030958,6]
[327689456,1716318656727,-500.0,0.00030958,6]
[327689457,1716318656736,-500.0,0.00030958,6]
[327689458,1716318656745,-500.0,0.00030958,6]
[327689459,1716318656754,-661.8,0.00030958,6]
[327689460,1716318656763,-500.0,0.00030958,6]
[327689461,1716318656772,-500.0,0.00030958,6]
[327689462,1716318656781,-500.0,0.00030958,6]
[327689463,1716318656790,-500.0,0.00030958,6]
[327689464,1716318656799,-595.48,0.00030958,6]
[327689465,1716318656808,-500.0,0.00030958,6]
[327689466,1716318656817,-500.0,0.00030958,6]
[327689467,1716318656827,-500.0,0.00030958,6]
[327689468,1716318656837,-500.0,0.00030958,6]
[327689469,1716318656846,-500.0,0.00030958,6]
[327689470,1716318656856,-634.9,0.00030958,6]
[327689471,1716318656865,-512.29,0.00030958,6]
[327689472,1716318656874,-500.0,0.00030958,6]
[327689473,1716318656884,-500.0,0.00030958,6]
[327689474,1716318656893,-500.0,0.00030958,6]
[327689475,1716318656902,-561.39,0.00030958,6]
[327689476,1716318656911,-500.0,0.00030958,6]
[327689477,1716318656920,-528.97,0.00030958,6]
[327689478,1716318656928,-500.0,0.00030958,6]
[327689479,1716318656937,-500.0,0.00030958,6]
[327689480,1716318656946,-715.83,0.00030958,6]
[327689481,1716318656955,-500.0,0.00030958,6]
[327689482,1716318656964,-746.59,0.00030958,6]
[327689483,1716318656973,-500.0,0.00030958,6]
[327689484,1716318656982,-834.57,0.00030958,6]
[327689485,1716318656990,-962.78,0.00030958,6]
[327689486,1716318657000,-500.0,0.00030958,6]
[327689487,1716318657009,-500.0,0.00030958,6]
[327689488,1716318657018,-810.53,0.00030958,6]
[327689489,1716318657027,-500.0,0.00030958,6]
[327689490,1716318657036,-500.0,0.00030958,6]
[327689491,1716318657045,-533.82,0.00030958,6]
[327689492,1716318657054,-748.06,0.00030958,6]
[327689493,1716318657064,-500.0,0.00030958,6]
[327689494,1716318657073,-500.0,0.00030958,6]
[327689495,1716318657083,-500.0,0.00030958,6]
[327689496,1716318657093,-500.0,0.00030958,6]
[327689497,1716318657102,-500.0,0.00030958,6]
[327689498,1716318657111,-500.0,0.00030958,6]
[327689499,1716318657120,-500.0,0.00030958,6]
[327689500,1716318657128,-631.81,0.00030958,6]
[327689501,1716318657138,-500.0,0.00030958,6]
[327689502,1716318657147,-500.0,0.00030958,6]
[327689503,1716318657156,-614.01,0.00030958,6]
[327689504,1716318657165,-500.0,0.00030958,6]
[327689505,1716318657174,-500.0,0.00030958,6]
[327689506,1716318657183,-500.0,0.00030958,6]
[327689507,1716318657192,-500.0,0.00030958,6]
[327689508,1716318657201,-500.0,0.00030958,6]
[327689509,1716318657210,-500.0,0.00030958,6]
[327689510,1716318657219,-500.0,0.00030958,6]
[327689511,1716318657227,-500.0,0.00030958,6]
[327689512,1716318657236,-1102.91,0.00030958,6]
[327689513,1716318657245,-1027.36,0.00030958,6]
[327689514,1716318657253,-500.0,0.00030958,6]
[327689515,1716318657263,-500.0,0.00030958,6]
[327689516,1716318657272,-500.0,0.00030958,6]
[327689517,1716318657281,-867.74,0.00030958,6]
[327689518,1716318657291,-500.0,0.00030958,6]
[327689519,1716318657300,-518.12,0.00030958,6]
[327689520,1716318657309,-429.21606333,0.00030958,6]
[327689521,1716318657317,-500.0,0.00030958,6]
[327689522,1716318657326,-500.0,0.00030958,6]
[327689523,1716318657336,-703.82,0.00030958,6]
[327689524,1716318657345,-500.0,0.00030958,6]
[327689525,1716318657354,-507.83,0.00030958,6]
[327689526,1716318657363,-500.0,0.00030958,6]
[327689527,1716318657372,-500.0,0.00030958,6]
[327689528,1716318657381,-500.0,0.00030958,6]
[327689529,1716318657391,-500.0,0.00030958,6]
[327689530,1716318657400,-533.05,0.00030958,6]
[327689531,1716318657410,-500.0,0.00030958,6]
[327689532,1716318657419,-513.94,0.00030958,6]
[327689533,1716318657429,-621.64,0.00030958,6]
[327689534,1716318657439,-500.0,0.00030958,6]
[327689535,1716318657448,-500.0,0.00030958,6]
[327689536,1716318657457,-500.0,0.00030958,6]
[327689537,1716318657466,-500.0,0.00030958,6]
[327689538,1716318657476,-847.73,0.00030958,6]
[327689539,1716318657485,-535.16,0.00030958,6]
[327689540,1716318657494,-500.0,0.00030958,6]
[327689541,1716318657504,-500.0,0.00030958,6]
[327689542,1716318657513,-561.42,0.00030958,6]
[327689543,1716318657522,-500.0,0.00030958,6]
[327689544,1716318657531,-500.0,0.00030958,6]
[327689545,1716318657540,-500.0,0.00030958,6]
[327689546,1716318657555,-500.0,0.00030958,6]
[327689547,1716318657564,-681.09,0.00030958,6]
[327689548,1716318657574,-150.0,0.00030958,6]
[327689549,1716318657584,-713.03,0.00030958,6]
[327689550,1716318657595,-500.0,0.00030958,6]
[327689551,1716318657604,-942.26,0.00030958,6]
[327689552,1716318657613,-500.0,0.00030958,6]
[327689553,1716318657622,-796.8,0.00030958,6]
[327689554,1716318657634,-500.0,0.00030958,6]
[327689555,1716318657643,-500.0,0.00030958,6]
[327689556,1716318657652,-1162.37,0.00030958,6]
[327689557,1716318657661,-970.89,0.00030958,6]
[327689558,1716318657670,-544.66,0.00030958,6]
[327689559,1716318657679,-500.0,0.00030958,6]
[327689560,1716318657688,-500.0,0.00030958,6]
[327689561,1716318657697,-500.0,0.00030958,6]
[327689562,1716318657706,-723.05,0.00030958,6]
[327689563,1716318657715,-568.31,0.00030958,6]
[327689564,1716318657724,-682.22,0.00030958,6]
[327689565,1716318657733,-523.3,0.00030958,6]
[327689566,1716318657744,-620.04,0.00030958,6]
[327689567,1716318657753,-500.0,0.00030958,6]
[327689568,1716318657761,-500.0,0.00030958,6]
[327689569,1716318657770,-526.85,0.00030958,6]
[327689570,1716318657779,-500.0,0.00030958,6]
[327689571,1716318657788,-500.0,0.00030958,6]
[327689572,1716318657797,-500.0,0.00030958,6]
[327689573,1716318657806,-661.16,0.00030958,6]
[327689574,1716318657815,-723.42,0.00030958,6]
[327689575,1716318657824,-500.0,0.00030958,6]
[327689576,1716318657834,-938.08,0.00030958,6]
[327689577,1716318657842,-500.0,0.00030958,6]
[327689578,1716318657851,-500.0,0.00030958,6]
[327689579,1716318657861,-151.0,0.00030958,7]
[327689580,1716318657870,-615.71,0.00030958,6]
[327689581,1716318657880,-500.0,0.00030958,6]
[327689582,1716318657888,-500.0,0.00030958,6]
[327689583,1716318657897,-500.0,0.00030958,6]
[327689584,1716318657906,-837.04,0.00030958,6]
[327689585,1716318657915,-697.26,0.00030958,6]
[327689586,1716318657924,-500.0,0.00030958,6]
[327689587,1716318657933,-500.0,0.00030958,6]
[327689588,1716318657942,-500.0,0.00030958,6]
[327689589,1716318657951,-3300.18,0.00030958,6]
[327689590,1716318657960,-772.37,0.00030958,6]
[327689591,1716318657970,-500.0,0.00030958,6]
[327689592,1716318657978,-605.89,0.00030958,6]
[327689593,1716318657987,-621.53,0.00030958,6]
[327689594,1716318657997,-500.0,0.00030958,6]
[327689595,1716318658006,-609.74,0.00030958,6]
[327689596,1716318658015,-500.0,0.00030958,6]
[327689597,1716318658023,-500.0,0.00030958,6]
[327689598,1716318658032,-500.0,0.00030958,6]
[327689599,1716318658041,-500.0,0.00030958,6]
[327689600,1716318658050,-500.0,0.00030958,6]
[327689601,1716318658059,-500.0,0.00030958,6]
[327689602,1716318658068,-606.21,0.00030958,6]
[327689603,1716318658077,-553.86,0.00030958,6]
[327689604,1716318658087,-39664.03,0.00030958,6]
[327689605,1716318658096,-500.0,0.00030958,6]
[327689606,1716318658106,-500.0,0.00030958,6]
[327689607,1716318658115,-566.62,0.00030958,6]
[327689608,1716318658125,-500.0,0.00030958,6]
[327689609,1716318658134,-500.0,0.00030958,6]
[327689610,1716318658143,-963.28,0.00030958,6]
[327689611,1716318658152,-1985.46,0.00030958,6]
[327689612,1716318658162,-799.21,0.00030958,6]
[327689613,1716318658170,-500.0,0.00030958,6]
[327689614,1716318658179,-1463.0,0.00030958,6]
[327689615,1716318658188,-500.0,0.00030958,6]
[327689616,1716318658197,-3542.68,0.00030958,6]
[327689617,1716318658206,-1445.13,0.00030958,6]
[327689618,1716318658216,-560.11,0.00030958,6]
[327689619,1716318658224,-500.0,0.00030958,6]
[327689620,1716318658233,-500.0,0.00030958,6]
[327689621,1716318658242,-608.23,0.00030958,6]
[327689622,1716318658251,-4243.64,0.00030958,6]
[327689623,1716318658260,-500.0,0.00030958,6]
[327689624,1716318658269,-500.0,0.00030958,6]
[327689625,1716318658279,-596.61,0.00030958,6]
[327689626,1716318658288,-500.0,0.00030958,6]
[327689627,1716318658297,-500.0,0.00030958,6]
[327689628,1716318658306,-500.0,0.00030958,6]
[327689629,1716318658314,-603.95,0.00030958,6]
[327689630,1716318658324,-9589.51,0.00030958,6]
[327689631,1716318658332,-500.0,0.00030958,6]
[327689632,1716318658341,-1268.11,0.00030958,6]
[327689633,1716318658350,-1315.38,0.00030958,6]
[327689634,1716318658359,-938.89,0.00030958,6]
[327689635,1716318658372,-2031.24,0.00030958,6]
[327689636,1716318658381,-765.12,0.00030958,6]
[327689637,1716318658390,-1695.3,0.00030958,6]
[327689638,1716318658400,-500.0,0.00030958,6]
[327689639,1716318658409,-500.0,0.00030958,6]
[327689640,1716318658418,-500.0,0.00030958,6]
[327689641,1716318658427,-3683.03,0.00030958,6]
[327689642,1716318658436,-2200.51,0.00030958,6]
[327689643,1716318658446,-500.0,0.00030958,6]
[327689644,1716318658455,-500.0,0.00030958,6]
[327689645,1716318658465,-1925.63,0.00030958,6]
[327689646,1716318658474,-1373.33,0.00030958,6]
[327689647,1716318658484,-1147.94,0.00030958,6]
[327689648,1716318658493,-14832.01,0.00030958,6]